fUST/lending_fUST_20240226
["ID","MTS","AMOUNT","RATE_DAILY","PERIOD"]
[315229437,1708955439337,-632.42,0.00019726,2]
[315229438,1708955439347,-924.25,0.00019726,2]
[315229439,1708955439356,-500.0,0.00019726,2]
[315229440,1708955439365,-500.0,0.00019726,2]
[315229441,1708955439376,-500.0,0.00019726,2]
[315229442,1708955439385,-1737.46,0.00019726,2]
[315229443,1708955439395,-3003.21,0.00019726,2]
[315229444,1708955439404,-598.47,0.00019726,2]
[315229445,1708955439413,-551.40963695,0.00019726,2]
[315229446,1708955439422,-1118.49,0.00019726,2]
[315229447,1708955439432,-1366.67,0.00019726,2]
[315229448,1708955439441,-1533.56,0.00019726,2]
[315229449,1708955439450,-1388.38,0.00019726,2]
[315229450,1708955439459,-607.73433503,0.00019726,2]
[315229451,1708955439468,-500.0,0.00019726,2]
[315229452,1708955439477,-500.0,0.00019726,2]
[315229453,1708955439486,-500.0,0.00019726,2]
[315229454,1708955439496,-14214.92,0.00019726,2]
[315229455,1708955439504,-1223.79,0.00019726,2]
[315229456,1708955439513,-5793.06,0.00019726,2]
[315229457,1708955439523,-1801.08,0.00019726,2]
[315229458,1708955439532,-1523.12,0.00019726,2]
[315229459,1708955439541,-1516.49,0.00019726,2]
[315229460,1708955439551,-770.81,0.00019726,2]
[315229461,1708955439560,-500.0,0.00019726,2]
[315229462,1708955439569,-512.02,0.00019726,2]
[315229463,1708955439578,-980.71,0.00019726,2]
[315229464,1708955439588,-2699.84,0.00019726,2]
[315229465,1708955439598,-1805.54,0.00019726,2]
[315229466,1708955439608,-1376.4,0.00019726,2]
[315229467,1708955439617,-1306.09,0.00019726,2]
[315229468,1708955439626,-12060.84,0.00019726,2]
[315229469,1708955439635,-821.34,0.00019726,2]
[315229470,1708955439644,-500.0,0.00019726,2]
[315229471,1708955439652,-7527.33,0.00019726,2]
[315229472,1708955439661,-901.07,0.00019726,2]
[315229473,1708955439675,-1228.8980072,0.000199,2]
[315229474,1708955439685,-677.39959869,0.00019999,2]
[315229475,1708955439694,-639.82470976,0.00019999,2]
[315229476,1708955439702,-91721.32019447,0.0002,4]
[315229477,1708955439712,-500.0,0.0002,2]
[315229478,1708955439721,-500.0,0.0002,2]
[315229479,1708955439730,-763.72,0.0002,2]
[315229480,1708955439739,-500.0,0.0002,2]
[315229481,1708955439749,-500.0,0.0002,2]
[315229482,1708955439758,-1048.68,0.0002,2]
[315229483,1708955439767,-786.43,0.0002,2]
[315229484,1708955439776,-791.49,0.0002,2]
[315229485,1708955439785,-632.42,0.0002,2]
[315229486,1708955439798,-924.25,0.0002,2]
[315229487,1708955439807,-500.0,0.0002,2]
[315229488,1708955439817,-500.0,0.0002,2]
[315229489,1708955439826,-500.0,0.0002,2]
[315229490,1708955439835,-1737.46,0.0002,2]
[315229491,1708955439845,-3003.21,0.0002,2]
[315229492,1708955439857,-598.47,0.0002,2]
[315229493,1708955439866,-1118.49,0.0002,2]
[315229494,1708955439875,-1366.67,0.0002,2]
[315229495,1708955439884,-1533.56,0.0002,2]
[315229496,1708955439893,-1388.38,0.0002,2]
[315229497,1708955439902,-500.0,0.0002,2]
[315229498,1708955439911,-500.0,0.0002,2]
[315229499,1708955439921,-166.75,0.0002,2]
[315229500,1708955439930,-14214.92,0.0002,2]
[315229501,1708955439939,-1223.79,0.0002,2]
[315229503,1708955439947,-5793.06,0.0002,2]
[315229504,1708955439957,-1801.08,0.0002,2]
[315229505,1708955439967,-1523.12,0.0002,2]
[315229506,1708955439975,-1516.49,0.0002,2]
[315229507,1708955439985,-770.81,0.0002,2]
[315229508,1708955439994,-500.0,0.0002,2]
[315229510,1708955440030,-512.02,0.0002,2]
[315229511,1708955440040,-980.71,0.0002,2]
[315229512,1708955440051,-2699.84,0.0002,2]
[315229513,1708955440060,-1805.54,0.0002,2]
[315229514,1708955440069,-1376.4,0.0002,2]
[315229515,1708955440078,-1306.09,0.0002,2]
[315229516,1708955440088,-12060.84,0.0002,2]
[315229517,1708955440097,-821.34,0.0002,2]
[315229518,1708955440106,-190.30062599,0.0002,2]
[315229519,1708955440116,-166.666666,0.00020076,2]
[315229520,1708955440126,-2261.91642939,0.00020078,2]
[315229521,1708955440135,-1000.0,0.00020169,2]
[315229522,1708955440144,-1631.09827653,0.00020169,2]
[315229523,1708955440153,-435.30727229,0.00020169,2]
[315229524,1708955440162,-187.57691764,0.00020169,2]
[315229525,1708955440172,-483.79592136,0.00020169,2]
[315229526,1708955440181,-1000.0,0.00020169,2]
[315229527,1708955440190,-207.34110916,0.00020169,2]
[315229528,1708955440199,-2261.91642935,0.00020169,2]
[315229529,1708955440209,-3113.97670187,0.00020178,2]
[315229530,1708955440217,-5000.0,0.00020178,2]
[315229531,1708955440226,-20365.79292247,0.00020178,2]
[315229532,1708955440241,-1322.32,0.00020178,2]
[315229533,1708955440252,-4141.33618839,0.00020178,2]
[315229534,1708955440262,-500.96293574,0.00020178,2]
[315229535,1708955440274,-3668.85941965,0.00020178,2]
[315229543,1708955440972,-300.77936664,0.00017083,2]
[315229545,1708955440981,-7527.33,0.0002,2]
[315229547,1708955440990,-901.07,0.0002,2]
[315229549,1708955440999,-813.29663336,0.00020178,2]
[315229551,1708955441012,-1564.76008696,0.00020178,2]
[315229586,1708955442960,-55165.14218817,0.00020178,2]
[315229587,1708955442969,-36912.3785244,0.00020178,2]
[315229632,1708955445865,-3075.38561124,0.00020178,2]
[315229634,1708955445875,-5000.0,0.00020178,2]
[315229635,1708955445885,-35923.64799512,0.00020178,2]
[315229637,1708955445896,-7118.65445348,0.00020178,2]
[315229640,1708955445905,-153.0,0.00020192,2]
[315229641,1708955445914,-200.5826354,0.00020192,2]
[315229643,1708955445924,-200.5826354,0.00020192,2]
[315229646,1708955445934,-153.0,0.00020192,2]
[315229647,1708955445943,-200.5826354,0.00020192,2]
[315229649,1708955445953,-153.0,0.00020192,2]
[315229651,1708955445962,-200.5826354,0.00020192,2]
[315229653,1708955445971,-153.0,0.00020192,2]
[315229655,1708955445980,-200.5826354,0.00020192,2]
[315229657,1708955445988,-153.0,0.00020192,2]
[315229659,1708955445997,-200.5826354,0.00020192,2]
[315229661,1708955446007,-153.0,0.00020192,2]
[315229663,1708955446016,-200.5826354,0.00020192,2]
[315229665,1708955446025,-200.5826354,0.00020192,2]
[315229667,1708955446035,-2261.91642935,0.00020261,2]
[315229669,1708955446045,-374.82129917,0.00020273,2]
[315229672,1708955446057,-125.17870083,0.00020273,2]
[315229674,1708955446067,-500.0,0.00020273,2]
[315229676,1708955446077,-763.72,0.00020273,2]
[315229678,1708955446086,-500.0,0.00020273,2]
[315229679,1708955446095,-500.0,0.00020273,2]
[315229682,1708955446105,-1048.68,0.00020273,2]
[315229683,1708955446115,-786.43,0.00020273,2]
[315229685,1708955446124,-791.49,0.00020273,2]
[315229687,1708955446134,-632.42,0.00020273,2]
[315229689,1708955446143,-924.25,0.00020273,2]
[315229691,1708955446153,-500.0,0.00020273,2]
[315229693,1708955446162,-500.0,0.00020273,2]
[315229695,1708955446171,-500.0,0.00020273,2]
[315229697,1708955446180,-1737.46,0.00020273,2]
[315229699,1708955446190,-3003.21,0.00020273,2]
[315229701,1708955446199,-598.47,0.00020273,2]
[315229703,1708955446208,-1118.49,0.00020273,2]
[315229705,1708955446217,-1366.67,0.00020273,2]
[315229707,1708955446226,-1533.56,0.00020273,2]
[315229709,1708955446235,-1388.38,0.00020273,2]
[315229711,1708955446244,-500.0,0.00020273,2]
[315229713,1708955446252,-500.0,0.00020273,2]
[315229715,1708955446262,-14214.92,0.00020273,2]
[315229717,1708955446271,-1223.79,0.00020273,2]
[315229719,1708955446280,-5793.06,0.00020273,2]
[315229721,1708955446290,-1801.08,0.00020273,2]
[315229723,1708955446299,-1523.12,0.00020273,2]
[315229725,1708955446308,-1516.49,0.00020273,2]
[315229727,1708955446317,-770.81,0.00020273,2]
[315229729,1708955446327,-500.0,0.00020273,2]
[315229731,1708955446336,-512.02,0.00020273,2]
[315229733,1708955446344,-719.30709773,0.00020273,2]
[315229805,1708956418111,-4699.22949954,0.00017676,2]
[315229806,1708956418134,-967.8485403,0.00017677,2]
[315229807,1708956418154,-273.88290382,0.00017678,2]
[315229808,1708956418173,-186.8778934,0.0001769,2]
[315229809,1708956418192,-3050.53113157,0.0001776,2]
[315229902,1708956638036,-1718.77128395,0.00017754,2]
[315229904,1708956638045,-645.2323602,0.00017755,2]
[315229906,1708956638055,-4699.22949954,0.00017756,2]
[315229908,1708956638064,-3993.86613513,0.0001776,2]
[315229910,1708956638073,-3000.0,0.0001776,2]
[315229912,1708956638082,-1168.1487737,0.00017776,2]
[315229913,1708956638091,-15655.72608279,0.00017841,2]
[315229973,1708956641163,-1407.53701439,0.00017841,2]
[315229974,1708956641221,-7836.73690282,0.00017841,2]
[315229975,1708956641231,-928.96602334,0.000189,2]
[315229976,1708956641242,-7112.71028529,0.00018998,2]
[315229977,1708956641251,-211.37925262,0.00019078,2]
[315229978,1708956641261,-640.23476295,0.00019172,2]
[315229979,1708956641271,-273.54974326,0.00019177,2]
[315229980,1708956641280,-500.0,0.00019178,2]
[315229981,1708956641290,-500.0,0.00019178,2]
[315229982,1708956641299,-500.0,0.00019178,2]
[315229983,1708956641309,-500.0,0.00019178,2]
[315229984,1708956641319,-500.0,0.00019178,2]
[315229985,1708956641328,-500.0,0.00019178,2]
[315229986,1708956641338,-500.0,0.00019178,2]
[315229987,1708956641349,-500.0,0.00019178,2]
[315229988,1708956641363,-500.0,0.00019178,2]
[315229989,1708956641373,-848.28,0.00019178,2]
[315229990,1708956641382,-500.0,0.00019178,2]
[315229991,1708956641391,-500.0,0.00019178,2]
[315229992,1708956641402,-469.51232523,0.00019178,2]
[315229993,1708956641411,-500.0,0.00019178,2]
[315229994,1708956641421,-500.0,0.00019178,2]
[315229995,1708956641430,-500.0,0.00019178,2]
[315229996,1708956641441,-1054.36,0.00019178,2]
[315229997,1708956641452,-500.0,0.00019178,2]
[315229998,1708956641462,-500.0,0.00019178,2]
[315229999,1708956641472,-500.0,0.00019178,2]
[315230000,1708956641481,-501.06592275,0.00019178,2]
[315230001,1708956641491,-500.0,0.00019178,2]
[315230002,1708956641500,-500.0,0.00019178,2]
[315230003,1708956641509,-500.0,0.00019178,2]
[315230004,1708956641518,-452.29044727,0.00019178,2]
[315230005,1708956641527,-500.0,0.00019178,2]
[315230006,1708956641536,-500.0,0.00019178,2]
[315230007,1708956641546,-500.0,0.00019178,2]
[315230008,1708956641555,-500.0,0.00019178,2]
[315230009,1708956641564,-500.0,0.00019178,2]
[315230010,1708956641573,-500.0,0.00019178,2]
[315230011,1708956641582,-500.0,0.00019178,2]
[315230012,1708956641593,-500.0,0.00019178,2]
[315230013,1708956641602,-500.0,0.00019178,2]
[315230014,1708956641611,-500.0,0.00019178,2]
[315230015,1708956641621,-500.0,0.00019178,2]
[315230016,1708956641630,-500.0,0.00019178,2]
[315230017,1708956641639,-500.0,0.00019178,2]
[315230018,1708956641648,-500.0,0.00019178,2]
[315230019,1708956641658,-258.37608365,0.00019178,2]
[315230020,1708956641667,-500.0,0.00019178,2]
[315230021,1708956641676,-504.61327759,0.00019178,2]
[315230022,1708956641686,-1139.87,0.00019178,2]
[315230023,1708956641695,-501.1803164,0.00019178,2]
[315230024,1708956641704,-212.46898652,0.00019178,2]
[315230040,1708956643142,-287.53101348,0.00019178,2]
[315230041,1708956643152,-500.0,0.00019178,2]
[315230042,1708956643162,-846.46,0.00019178,2]
[315230043,1708956643171,-500.0,0.00019178,2]
[315230044,1708956643180,-500.0,0.00019178,2]
[315230045,1708956643190,-500.0,0.00019178,2]
[315230046,1708956643199,-500.0,0.00019178,2]
[315230047,1708956643208,-500.0,0.00019178,2]
[315230048,1708956643217,-500.0,0.00019178,2]
[315230049,1708956643226,-500.0,0.00019178,2]
[315230050,1708956643236,-676.34,0.00019178,2]
[315230051,1708956643245,-407.07496892,0.00019178,2]
[315230052,1708956643254,-500.0,0.00019178,2]
[315230053,1708956643262,-500.0,0.00019178,2]
[315230054,1708956643272,-276.13419307,0.00019178,2]
[315230055,1708956643281,-151.0,0.00019178,2]
[315230056,1708956643290,-500.0,0.00019178,2]
[315230057,1708956643299,-500.0,0.00019178,2]
[315230058,1708956643308,-500.0,0.00019178,2]
[315230059,1708956643317,-33.82979316,0.00019178,2]
[315230060,1708956643329,-329.06892386,0.00019178,2]
[315230061,1708956643339,-500.0,0.00019178,2]
[315230062,1708956643348,-602.41,0.00019178,2]
[315230063,1708956643363,-500.0,0.00019178,2]
[315230064,1708956643372,-836.16,0.00019178,2]
[315230065,1708956643381,-1127.21,0.00019178,2]
[315230066,1708956643390,-1798.31,0.00019178,2]
[315230067,1708956643400,-500.0,0.00019178,2]
[315230068,1708956643409,-455.48863444,0.00019178,2]
[315230069,1708956643418,-536.61,0.00019178,2]
[315230070,1708956643428,-441.60091176,0.00019178,2]
[315230071,1708956643437,-8047.07,0.00019178,2]
[315230072,1708956643447,-1669.38,0.00019178,2]
[315230073,1708956643456,-1399.95,0.00019178,2]
[315230074,1708956643466,-500.0,0.00019178,2]
[315230075,1708956643475,-3026.18,0.00019178,2]
[315230076,1708956643484,-500.0,0.00019178,2]
[315230077,1708956643494,-500.0,0.00019178,2]
[315230078,1708956643503,-500.0,0.00019178,2]
[315230079,1708956643512,-501.16229543,0.00019178,2]
[315230080,1708956643521,-500.0,0.00019178,2]
[315230081,1708956643531,-14633.82,0.00019178,2]
[315230082,1708956643540,-500.0,0.00019178,2]
[315230083,1708956643549,-500.0,0.00019178,2]
[315230084,1708956643558,-500.0,0.00019178,2]
[315230085,1708956643567,-1546.34,0.00019178,2]
[315230086,1708956643577,-500.0,0.00019178,2]
[315230087,1708956643586,-406.99210958,0.00019178,2]
[315230088,1708956643596,-1535.81,0.00019178,2]
[315230089,1708956643605,-1237.59,0.00019178,2]
[315230090,1708956643614,-507.80796114,0.00019178,2]
[315230091,1708956643623,-532.44958186,0.00019178,2]
[315230092,1708956643632,-6160.19,0.00019178,2]
[315230093,1708956643641,-500.0,0.00019178,2]
[315230094,1708956643650,-1522.05,0.00019178,2]
[315230095,1708956643659,-547.58,0.00019178,2]
[315230096,1708956643668,-1529.34,0.00019178,2]
[315230097,1708956643678,-2834.84,0.00019178,2]
[315230098,1708956643686,-1926.16,0.00019178,2]
[315230099,1708956643696,-824.34,0.00019178,2]
[315230100,1708956643705,-1895.82,0.00019178,2]
[315230101,1708956643714,-13802.39,0.00019178,2]
[315230102,1708956643722,-912.6,0.00019178,2]
[315230103,1708956643732,-500.0,0.00019178,2]
[315230104,1708956643741,-1054.46,0.00019178,2]
[315230105,1708956643750,-500.0,0.00019178,2]
[315230106,1708956643759,-500.0,0.00019178,2]
[315230107,1708956643768,-1451.21,0.00019178,2]
[315230108,1708956643777,-358.55996586,0.00019178,2]
[315230109,1708956643786,-156.1005894,0.00019178,2]
[315230110,1708956643795,-910.95,0.00019178,2]
[315230111,1708956643804,-500.0,0.00019178,2]
[315230112,1708956643815,-500.0,0.00019178,2]
[315230113,1708956643825,-166.059238,0.00019178,2]
[315230114,1708956643834,-165.821467,0.00019178,2]
[315230115,1708956643845,-166.666666,0.00019178,2]
[315230116,1708956643854,-165.821467,0.00019178,2]
[315230117,1708956643863,-248686.99118497,0.00019352,2]
[315230118,1708956643875,-662.11588902,0.00019352,2]
[315230119,1708956643886,-791.07858623,0.00019352,2]
[315230120,1708956643896,-153.0,0.00019378,2]
[315230121,1708956643905,-500.0,0.00019452,2]
[315230122,1708956643914,-500.0,0.00019452,2]
[315230123,1708956643923,-848.28,0.00019452,2]
[315230124,1708956643932,-399.87143744,0.00019452,2]
[315230130,1708956646103,-577.31,0.00019178,2]
[315230131,1708956646112,-100.12856256,0.00019452,2]
[315230132,1708956646122,-1054.36,0.00019452,2]
[315230133,1708956646132,-500.0,0.00019452,2]
[315230134,1708956646141,-500.0,0.00019452,2]
[315230135,1708956646151,-500.0,0.00019452,2]
[315230136,1708956646160,-500.0,0.00019452,2]
[315230137,1708956646169,-500.0,0.00019452,2]
[315230138,1708956646178,-500.0,0.00019452,2]
[315230139,1708956646187,-533.98724685,0.00019452,2]
[315230140,1708956646197,-500.0,0.00019452,2]
[315230141,1708956646206,-500.0,0.00019452,2]
[315230142,1708956646214,-500.0,0.00019452,2]
[315230143,1708956646223,-500.0,0.00019452,2]
[315230144,1708956646232,-500.0,0.00019452,2]
[315230145,1708956646241,-1139.87,0.00019452,2]
[315230146,1708956646251,-500.0,0.00019452,2]
[315230147,1708956646260,-846.46,0.00019452,2]
[315230148,1708956646270,-500.0,0.00019452,2]
[315230149,1708956646279,-676.34,0.00019452,2]
[315230150,1708956646288,-500.0,0.00019452,2]
[315230151,1708956646297,-500.0,0.00019452,2]
[315230152,1708956646306,-836.16,0.00019452,2]
[315230153,1708956646314,-1127.21,0.00019452,2]
[315230154,1708956646324,-1798.31,0.00019452,2]
[315230155,1708956646333,-500.0,0.00019452,2]
[315230156,1708956646343,-536.61,0.00019452,2]
[315230157,1708956646352,-8047.07,0.00019452,2]
[315230158,1708956646362,-1669.38,0.00019452,2]
[315230159,1708956646372,-1399.95,0.00019452,2]
[315230160,1708956646383,-500.0,0.00019452,2]
[315230161,1708956646392,-3026.18,0.00019452,2]
[315230162,1708956646401,-500.0,0.00019452,2]
[315230163,1708956646410,-298.5706616,0.00019452,2]
[315230164,1708956646419,-3818.13215229,0.00019452,2]
[315230166,1708957212863,-537.6936335,0.00017472,2]
[315230167,1708957212884,-1718.77128395,0.00017472,2]
[315230168,1708957212903,-300.77936664,0.00017472,2]
[315230169,1708957212923,-2141.98521545,0.00017473,2]
[315230170,1708957221107,-2557.24428409,0.00017473,2]
[315230172,1708957285615,-273.88290382,0.00017476,2]
[315230173,1708957285637,-196.385799,0.00017477,2]
[315230174,1708957285659,-589.76966748,0.00017477,2]
[315230175,1708957357673,-280.13838305,0.00017476,2]
[315230176,1708957357699,-1718.77128395,0.00017476,2]
[315230189,1708957497350,1651.2008974,0.00016,2]
[315230190,1708957497385,9000.0,0.00016,2]
[315230191,1708957497413,9000.0,0.00016,2]
[315230192,1708957497439,9000.0,0.00016,2]
[315230193,1708957497468,9000.0,0.00016,2]
[315230194,1708957497496,9000.0,0.00016,2]
[315230195,1708957497525,9000.0,0.00016,2]
[315230196,1708957497553,9000.0,0.00016,2]
[315230197,1708957497581,9000.0,0.00016,2]
[315230198,1708957497609,8735.57627037,0.00016,2]
[315230203,1708957548370,264.42372963,0.00016,2]
[315230204,1708957548401,7740.96722663,0.00016,2]
[315230207,1708957574903,-196.385799,0.0001613,2]
[315230208,1708957574923,-273.88290382,0.00016944,2]
[315230209,1708957574943,-280.13838305,0.00016945,2]
[315230210,1708957574963,-300.77936664,0.00016945,2]
[315230211,1708957574983,-666.81354749,0.00017047,2]
[315230221,1708957674710,-1718.77128395,0.00017047,2]
[315230222,1708957674731,-2449.22871605,0.00017048,2]
[315230382,1708957843790,-280.13838305,0.00017047,2]
[315230383,1708957843801,-2250.00078349,0.00017048,2]
[315230384,1708957843812,-24900.0,0.00017049,2]
[315230385,1708957843826,-2196.5663516,0.00017202,2]
[315230386,1708957843838,-159.47434558,0.00017275,2]
[315230387,1708957843860,-273.8829038,0.00017313,2]
[315230388,1708957843873,-155.25057702,0.00017375,2]
[315230389,1708957843883,-1718.77128395,0.00017535,2]
[315230390,1708957843893,-9721.4760442,0.00017536,2]
[315230391,1708957843903,-171.63374951,0.00017902,2]
[315230392,1708957843914,-10093.77063485,0.00018604,2]
[315230393,1708957843923,-200.5826354,0.00018878,2]
[315230394,1708957843933,-1201.10079504,0.000189,2]
[315230395,1708957843943,-401.1652708,0.00018978,2]
[315230396,1708957843953,-273.71632354,0.00019176,2]
[315230397,1708957843963,-293.09217494,0.00019176,2]
[315230398,1708957843973,-1211.75768482,0.00019177,2]
[315230399,1708957843983,-325.95846595,0.00019178,2]
[315230400,1708957843993,-500.0,0.00019178,2]
[315230401,1708957844002,-500.0,0.00019178,2]
[315230402,1708957844013,-500.0,0.00019178,2]
[315230403,1708957844023,-500.0,0.00019178,2]
[315230404,1708957844033,-500.0,0.00019178,2]
[315230405,1708957844043,-500.0,0.00019178,2]
[315230406,1708957844053,-356.05453121,0.00019178,2]
[315230407,1708957844063,-500.0,0.00019178,2]
[315230408,1708957844077,-549.33868893,0.00019178,2]
[315230409,1708957844087,-500.0,0.00019178,2]
[315230410,1708957844097,-500.0,0.00019178,2]
[315230411,1708957844106,-500.0,0.00019178,2]
[315230412,1708957844116,-500.0,0.00019178,2]
[315230413,1708957844126,-766.48,0.00019178,2]
[315230414,1708957844135,-500.0,0.00019178,2]
[315230415,1708957844145,-500.0,0.00019178,2]
[315230416,1708957844154,-500.0,0.00019178,2]
[315230417,1708957844163,-500.0,0.00019178,2]
[315230418,1708957844175,-400.74153941,0.00019178,2]
[315230419,1708957844184,-1044.88,0.00019178,2]
[315230420,1708957844194,-500.0,0.00019178,2]
[315230421,1708957844203,-775.92,0.00019178,2]
[315230422,1708957844213,-500.0,0.00019178,2]
[315230423,1708957844223,-619.98,0.00019178,2]
[315230424,1708957844232,-500.0,0.00019178,2]
[315230425,1708957844242,-1648.45,0.00019178,2]
[315230426,1708957844252,-1033.28,0.00019178,2]
[315230427,1708957844262,-175.74809842,0.00019178,2]
[315230428,1708957844272,-500.0,0.00019178,2]
[315230429,1708957844281,-500.0,0.00019178,2]
[315230430,1708957844291,-1530.26,0.00019178,2]
[315230431,1708957844301,-7376.48,0.00019178,2]
[315230432,1708957844311,-500.0,0.00019178,2]
[315230433,1708957844321,-500.0,0.00019178,2]
[315230434,1708957844335,-693.5,0.00019178,2]
[315230435,1708957844344,-1283.29,0.00019178,2]
[315230436,1708957844354,-500.0,0.00019178,2]
[315230437,1708957844363,-500.0,0.00019178,2]
[315230438,1708957844374,-500.0,0.00019178,2]
[315230439,1708957844383,-1481.91,0.00019178,2]
[315230440,1708957844392,-14003.05,0.00019178,2]
[315230441,1708957844401,-500.0,0.00019178,2]
[315230442,1708957844411,-777.59,0.00019178,2]
[315230443,1708957844421,-500.0,0.00019178,2]
[315230444,1708957844430,-500.0,0.00019178,2]
[315230445,1708957844439,-500.0,0.00019178,2]
[315230446,1708957844449,-1194.58,0.00019178,2]
[315230447,1708957844458,-416.45003183,0.00019178,2]
[315230448,1708957844468,-500.0,0.00019178,2]
[315230449,1708957844477,-500.0,0.00019178,2]
[315230450,1708957844487,-1845.9,0.00019178,2]
[315230451,1708957844496,-5903.52,0.00019178,2]
[315230452,1708957844505,-1471.82,0.00019178,2]
[315230453,1708957844514,-789.99,0.00019178,2]
[315230454,1708957844524,-2716.72,0.00019178,2]
[315230455,1708957844533,-1458.63,0.00019178,2]
[315230456,1708957844542,-500.0,0.00019178,2]
[315230457,1708957844552,-1010.52,0.00019178,2]
[315230458,1708957844561,-500.0,0.00019178,2]
[315230459,1708957844570,-524.76,0.00019178,2]
[315230460,1708957844585,-13227.29,0.00019178,2]
[315230461,1708957844595,-1465.62,0.00019178,2]
[315230462,1708957844604,-1816.83,0.00019178,2]
[315230463,1708957844613,-500.0,0.00019178,2]
[315230464,1708957844622,-966.5,0.00019178,2]
[315230465,1708957844631,-500.0,0.00019178,2]
[315230466,1708957844641,-874.57,0.00019178,2]
[315230467,1708957844650,-872.99,0.00019178,2]
[315230468,1708957844659,-623.78076233,0.00019178,2]
[315230490,1708957846244,-766.96923767,0.00019178,2]
[315230491,1708957846254,-553.26,0.00019178,2]
[315230492,1708957846263,-500.0,0.00019178,2]
[315230493,1708957846272,-500.0,0.00019178,2]
[315230494,1708957846282,-166.666666,0.00019178,2]
[315230495,1708957846291,-166.059238,0.00019178,2]
[315230496,1708957846300,-620.98371688,0.00019286,2]
[315230497,1708957846310,-153.0,0.0001937,2]
[315230498,1708957846319,-153.0,0.0001937,2]
[315230499,1708957846330,-153.0,0.0001937,2]
[315230500,1708957846338,-200.5826354,0.0001937,2]
[315230501,1708957846348,-153.0,0.0001937,2]
[315230502,1708957846361,-153.0,0.0001937,2]
[315230503,1708957846371,-500.0,0.00019452,2]
[315230504,1708957846381,-500.0,0.00019452,2]
[315230505,1708957846390,-500.0,0.00019452,2]
[315230506,1708957846399,-500.0,0.00019452,2]
[315230507,1708957846409,-548.03628085,0.00019452,2]
[315230508,1708957846418,-500.0,0.00019452,2]
[315230509,1708957846427,-500.0,0.00019452,2]
[315230510,1708957846437,-500.0,0.00019452,2]
[315230511,1708957846446,-500.0,0.00019452,2]
[315230512,1708957846455,-766.48,0.00019452,2]
[315230513,1708957846464,-414.76268041,0.00019452,2]
[315230514,1708957846473,-1044.88,0.00019452,2]
[315230515,1708957846482,-500.0,0.00019452,2]
[315230516,1708957846492,-775.92,0.00019452,2]
[315230517,1708957846501,-500.0,0.00019452,2]
[315230518,1708957846510,-619.98,0.00019452,2]
[315230519,1708957846520,-500.0,0.00019452,2]
[315230520,1708957846529,-1648.45,0.00019452,2]
[315230521,1708957846538,-1033.28,0.00019452,2]
[315230522,1708957846547,-551.40963695,0.00019452,2]
[315230523,1708957846556,-1530.26,0.00019452,2]
[315230524,1708957846566,-7376.48,0.00019452,2]
[315230525,1708957846577,-324.92942874,0.00019452,2]
[315230526,1708957846586,-275.40215454,0.00019452,2]
[315230527,1708957846598,-418.09784546,0.00019452,2]
[315230528,1708957846606,-1283.29,0.00019452,2]
[315230529,1708957846615,-500.0,0.00019452,2]
[315230530,1708957846625,-540.43198909,0.00019452,2]
[315230531,1708957846634,-1481.91,0.00019452,2]
[315230532,1708957846643,-14003.05,0.00019452,2]
[315230533,1708957846652,-500.0,0.00019452,2]